Cogmind - Beta 14 @@@ ROGUE MODE // 2025.01.02 @ 14:10:12 Player: SEE YOU SPACE BUNNY Result: Destroyed by D-53 Grenadier with Mini Grenade Launcher Performance ------------- Evolutions (0) 0 Regions Visited (2) 400 Robots Destroyed (20) 100 Value Destroyed (384) 384 Prototype IDs (0) 0 Alien Tech Used (0) 0 Bonus (0) 0 TOTAL SCORE: 884 Bonus ------- None Cogmind --------- Core Integrity 0/250 Matter 265/300 Energy 74/100 System Corruption 0% Temperature Cool (0) Movement Core (400) Ox7 Location -10/Mines Parts ------- > --- POWER (1) -------- (None) > --- PROPULSION (2) --- (None) > --- UTILITY (2) ------ Heat Sink Large Storage Unit > --- WEAPON (2) ------- Makeshift Shrapnel Gun > --- INVENTORY (15) --- Light Ion Engine Improved Treads Improved Treads High-capacity Battery (250) High-capacity Matter Pod (158) Propulsion Shielding Tractor Beam Light Assault Rifle Light Assault Rifle Plasma Cutter Peak State ------------ > --- POWER ------------ Light Ion Engine > --- PROPULSION ------- Improved Treads Improved Treads > --- UTILITY ---------- Heat Sink Large Storage Unit > --- WEAPON ----------- Assault Rifle Rocket Launcher > --- INVENTORY -------- Light Ion Engine Improved Treads Improved Treads High-capacity Battery High-capacity Matter Pod Propulsion Shielding Tractor Beam Light Assault Rifle Light Assault Rifle Grenade Launcher Plasma Cutter [Rating: 11] Favorites ----------- Power Light Ion Engine Engine Light Ion Engine Propulsion Improved Treads Treads Improved Treads Wheel Wheel Utility Heat Sink Device Heat Sink Storage Large Storage Unit Protection Light Armor Plating Weapon Assault Rifle Ballistic Gun Assault Rifle Launcher Grenade Launcher Special Weapon Plasma Cutter Special Melee Weapon Datajack Build | -11 -10 -10 ------- Run | Yrd Mat Min Slots Evolved . | . . . Power . | . . . Propulsion . | . . . Utility . | . . . Weapon . | . . . Parts Attached 18 | 6 9 3 Power 1 | 1 . . Engine 1 | 1 . . Core . | . . . Reactor . | . . . Propulsion 4 | 2 2 . Treads 2 | . 2 . Leg . | . . . Wheel 2 | 2 . . Hover . | . . . Flight . | . . . Utility 3 | 1 2 . Device 1 | 1 . . Storage 1 | . 1 . Processor . | . . . Hackware . | . . . Protection 1 | . 1 . Artifact . | . . . Weapon 10 | 2 5 3 Energy Gun . | . . . Energy Cannon . | . . . Ballistic Gun 5 | 2 2 1 Ballistic Cannon . | . . . Launcher 3 | . 1 2 Special Weapon 1 | . 1 . Impact Weapon . | . . . Slashing Weapon . | . . . Piercing Weapon . | . . . Special Melee Weapon 1 | . 1 . Unidentified Prototypes . | . . . Parts Lost 9 | . 3 6 Power 1 | . . 1 Propulsion 2 | . . 2 Utility 1 | . 1 . Weapon 5 | . 2 3 Highest Loss Streak 6 | . 2 6 To Critical Strikes . | . . . Average Slot Usage (%) 94 | . 93 97 Engine 13 | . 14 13 Treads 27 | . 27 26 Device 14 | . 14 14 Storage 8 | . 6 14 Protection 2 | . 2 . Ballistic Gun 17 | . 17 18 Launcher 7 | . 7 9 Special Melee Weapon 1 | . 2 . Peak Build Rating 11 | 6 10 11 Average Rating 8 | 3 8 10 On Entrance 5 | . 6 10 Naked Turns . | . . . Heaviest Build 30 | 8 28 30 Greatest Support 46 | 20 46 46 Greatest Overweight (x) . | . . . Average Overweight (x) . | . . . Largest Inventory Capacity 15 | 5 15 15 Average Capacity 10 | 5 9 15 Most Carried 12 | 5 10 12 Average Carried 6 | 2 6 10 Final Capacity 15 | 5 15 15 Final Carried 10 | 4 10 10 Class Distribution -------------------- 100% | Mutant Dominant Class ---------------- Mutant | -10/Materials Mutant | -10/Mines Resources | -11 -10 -10 ----------- Run | Yrd Mat Min Matter Collected 739 | 262 253 224 Remotely . | . . . Salvage Created 486 | 32 274 180 Parts 45 | 3 22 20 Haulers Intercepted . | . . . Recyclers Shooed . | . . . Parts Field Recycled . | . . . Retrieved Matter . | . . . Parts Self-Destructed . | . . . Prevented . | . . . Kills | -11 -10 -10 ------- Run | Yrd Mat Min Combat Hostiles Destroyed 16 | 1 10 5 Melee 1 | . 1 . Guns 13 | 1 9 3 AOE 2 | . . 2 Classes Destroyed 6 | 1 2 3 Worker 1 | . . 1 Tunneler 1 | . . 1 Recycler 1 | . . 1 Watcher 1 | . 1 . Swarmer 9 | . 6 3 Grunt 7 | 1 4 2 Best Kill Streak 6 | 1 6 4 Combat Bots Only 6 | 1 6 3 Max Kills in Single Turn 3 | 1 1 3 Gunslinging . | . . . Exploded 2 | . . 2 Melee 1 | . 1 . Uniques/NPCs Destroyed . | . . . Combat | -11 -10 -10 -------- Run | Yrd Mat Min Hostile Shots Fired 116 | 2 85 29 Missed 28 | . 21 7 Damage Taken 1183 | 23 616 544 Core 282 | 11 110 161 Absorbed by Shields . | . . . Core Remaining (%) 95 | 95 . . Volleys Fired 71 | 2 54 15 Largest 2 | 2 2 2 Hottest 53 | 40 40 53 Shots Fired 95 | 4 64 27 Gun 90 | 4 64 22 Cannon . | . . . Launcher 5 | . . 5 Special . | . . . Kinetic 90 | 4 64 22 Thermal . | . . . Explosive 5 | . . 5 Electromagnetic . | . . . Robot Hit Streak 7 | 3 7 4 Robot Miss Streak 3 | . 3 3 Penetration Max . | . . . Secondary Targets 2 | . . 2 Max Gunslinging Chain 1 | . . 1 Shots Hit Robots 58 | 3 40 15 Core Hits 29 | 2 14 13 Critical Kills 1 | . 1 . Critical Parts Destroyed . | . . . Critical Strikes 1 | . 1 . Destroy 1 | . 1 . Melee Attacks 2 | . 2 . Impact . | . . . Slashing . | . . . Piercing . | . . . Sneak Attacks 1 | . 1 . Combat Hostiles . | . . . Follow-up Attacks . | . . . Damage Inflicted 896 | 34 444 418 Guns 621 | 34 444 143 Cannons . | . . . Explosions 275 | . . 275 Melee . | . . . Ramming . | . . . Kinetic 621 | 34 444 143 Thermal . | . . . Explosive 275 | . . 275 Electromagnetic . | . . . Impact . | . . . Slashing . | . . . Piercing . | . . . Highest Corruption . | . . . Average Corruption . | . . . Corruption Purged . | . . . Corruption Blocked . | . . . Overload Shots . | . . . Overflow Damage 14 | . . 14 Projectiles . | . . . Explosions 14 | . . 14 Melee . | . . . Knockbacks . | . . . Impact . | . . . Kinetic . | . . . Secondary . | . . . Self-Inflicted Damage 56 | . . 56 Shots 2 | . . 2 Rammed . | . . . Targets Rammed 1 | . 1 . Kicked . | . . . Crushed 1 | . 1 . Highest Temperature 10 | . 10 . Average Temperature 10 | . 10 . Received Heat Transfer 228 | 12 207 9 Siege Activations . | . . . Robots Corrupted . | . . . Combat Hostiles . | . . . Parts Fried . | . . . Impact Corruptions . | . . . Robots Melted . | . . . Combat Hostiles . | . . . Parts Melted . | . . . Heat Transferred . | . . . Parts Sabotaged . | . . . Parts Stolen . | . . . Parts Stripped . | . . . Power Chain Reactions . | . . . Alert | -11 -10 -10 ------- Run | Yrd Mat Min Peak Influence 254 | 20 254 208 Initial 46 | . 13 46 Average 117 | 3 117 155 Maximum Alert Level 1 | . 1 1 Low Security (%) 75 | 100 79 56 Level 1 24 | . 20 43 Level 2 . | . . . Level 3 . | . . . Level 4 . | . . . Level 5 . | . . . High Security . | . . . Max Security . | . . . Squads Dispatched 2 | . 2 . Investigation 1 | . 1 . Extermination . | . . . Reinforcement 1 | . 1 . Assault . | . . . Garrison . | . . . Intercept . | . . . Searches Triggered . | . . . Construction Impeded . | . . . Haulers Reinforced . | . . . Active Scanning Responses . | . . . Cargo Convoy Interrupts . | . . . Stealth | -11 -10 -10 --------- Run | Yrd Mat Min Distress Signals 1 | . 1 . Communications Jammed . | . . . Distress Signals . | . . . Times Spotted 21 | 1 14 6 Peak Tracking Total 4 | 1 4 2 Tactical Retreats 1 | . 1 . Traps | -11 -10 -10 ------- Run | Yrd Mat Min Traps Triggered 1 | . 1 . Indirectly . | . . . Trap Hack Attempts . | . . . Triggered . | . . . Disarmed . | . . . Reprogrammed . | . . . Reused . | . . . Traps Extracted . | . . . Installed . | . . . Triggered . | . . . Machines | -11 -10 -10 ---------- Run | Yrd Mat Min Machines Disabled . | . . . Max in Single Turn . | . . . Machines Repaired . | . . . Machines Dismantled . | . . . Machines Sabotaged . | . . . Overloaded Fab Kills . | . . . Hacking | -11 -10 -10 --------- Run | Yrd Mat Min Machines Accessed 5 | . 5 . Terminals 3 | . 3 . Fabricators . | . . . Repair Stations . | . . . Recycling Units 2 | . 2 . Scanalyzers . | . . . Garrison Access . | . . . Total Hacks 11 | . 11 . Successful 7 | . 7 . Failed 4 | . 4 . Catastrophic 2 | . 2 . Database Lockouts . | . . . Manual 1 | . 1 . Terminals 7 | . 7 . Fabricators . | . . . Repair Stations . | . . . Recycling Units 4 | . 4 . Scanalyzers . | . . . Garrison Access . | . . . Terminal Hacks 3 | . 3 . Emergency Access Points 1 | . 1 . Alert Level 1 | . 1 . Hauler Manifests 1 | . 1 . Fabricator Hacks . | . . . Repair Station Hacks . | . . . Recycling Unit Hacks 4 | . 4 . Report Inventory 2 | . 2 . Retrieve Components 2 | . 2 . Scanalyzer . | . . . Garrison Access Hacks . | . . . Unauthorized Hacks . | . . . Terminals . | . . . Fabricators . | . . . Repair Stations . | . . . Recycling Units . | . . . Scanalyzers . | . . . Garrison Access . | . . . Data Cores Recovered . | . . . Used . | . . . Hacking Detections 2 | . 2 . Full Trace Events 1 | . 1 . Feedback Events . | . . . Feedback Blocked . | . . . Robot Schematics Acquired . | . . . Robots Built . | . . . Authchips . | . . . Time . | . . . Total Robot Build Rating . | . . . Part Schematics Acquired . | . . . Parts Built . | . . . Authchips . | . . . Time . | . . . Total Part Build Rating . | . . . Parts Repaired . | . . . Time . | . . . Parts Recycled . | . . . Recycled Matter . | . . . Retrieved Matter . | . . . Retrieved Components 10 | . 10 . Parts Scanalyzed . | . . . Part Schematics Acquired . | . . . Parts Damaged . | . . . Bothacking | -11 -10 -10 ------------ Run | Yrd Mat Min Used RIF Installer . | . . . Robots Hacked 2 | . 2 . Non-combat 1 | . 1 . Combat 1 | . 1 . Robot Hacks Applied 2 | . 2 . parse_system 2 | . 2 . Relay Couplers Released . | . . . Fabnet Peak Effective % . | . . . Robots Rewired . | . . . Allies Hacked . | . . . Hacks Repelled . | . . . Allies | -11 -10 -10 -------- Run | Yrd Mat Min Total Allies . | . . . Largest Group . | . . . Highest-Rated Group . | . . . Highest-Rated Ally . | . . . Total Orders . | . . . Ally Attacks . | . . . Total Damage . | . . . Kills . | . . . Allies Corrupted . | . . . Allies Melted . | . . . Intel | -11 -10 -10 ------- Run | Yrd Mat Min Robot Analysis Total . | . . . Derelict Logs Recovered 1 | . . 1 Drone Launches . | . . . Drone Recoveries . | . . . Exploration | -11 -10 -10 ------------- Run | Yrd Mat Min Turns Passed 992 | 68 713 211 Spaces Moved 522 | 66 355 101 Core 16 | 16 . . Treads 450 | . 349 101 Legs . | . . . Wheels 56 | 50 6 . Hover . | . . . Flight . | . . . Fastest Speed 50 | 50 80 160 Average Speed 148 | 72 158 160 Slowest Speed 160 | 80 160 160 Overloaded Moves . | . . . Propulsion Burnouts . | . . . Robots Hopped . | . . . Cave-ins Triggered . | . . . Exploration Rate (%) 34 | 5 59 39 Regions Visited 2 Branch Regions 1 Pre-discovered Areas . | . . . Known Exits Taken . | . . . Unknown Exits Taken 2 | 1 1 . Scrap Searched 1 | . . 1 Spaces Dug . | . . . Terrain Destroyed 57 | . . 57 Melee . | . . . Projectile . | . . . AOE 57 | . . 57 Terrain Rammed . | . . . Walls Destroyed . | . . . Machines Disabled . | . . . Actions | -11 -10 -10 --------- Run | Yrd Mat Min Total 652 | 79 446 127 Wait 6 | . 1 5 Move 520 | 65 354 101 Hop . | . . . Pick Up 23 | 6 15 2 Fast Attach 7 | 4 3 . Attach 11 | 2 6 3 Detach 3 | . 2 1 Swap . | . . . Drop 8 | . 8 . Fire 71 | 2 54 15 Melee 2 | . 2 . Ram . | . . . Kick . | . . . Crush 1 | . 1 . Escape Stasis . | . . . Rewire . | . . . Trap . | . . . Miscellaneous . | . . . Route ------- -11/Scrapyard -10/Materials (discovered 2 exits: [*Mat] / [*Min]) -10/Mines (discovered 1 exit: [*Mat]) History --------- Turn | Location | Event 2 | -11/Scrapyard | Met Revision 17 49 | -11/Scrapyard | Discovered new exit (range 8) 69 | -11/Scrapyard | Entered Materials 300 | -10/Materials | Build established: Mutant 396 | -10/Materials | Discovered new exit (range 10) 763 | -10/Materials | Discovered new exit (range 5) 782 | -10/Materials | Entered Mines 784 | -10/Mines | Core integrity fell below 50% 841 | -10/Mines | Discovered new exit (range 9) 848 | -10/Mines | Received a Rocket Launcher from a helpful Derelict 916 | -10/Mines | A weapon hastily lodged in a ceiling crevice suddenly fell to the ground 929 | -10/Mines | Assembled infested the area 992 | -10/Mines | Core integrity fell below 20% 993 | -10/Mines | Destroyed by D-53 Grenadier with Mini Grenade Launcher Last Messages --------------- 00959_ Found Flight Unit. 00959_ Found Lrg. Battery. 00959_ Found 70 Matter. 00960_ Acquired 70 matter. 00960_ K-01 Serf collects debris. 00983_ C-30 ARC bursts open, deploying its payload. 00983_ D-53 Grenadier unfolds itself. 00983_ Imp. Treads destroyed. 00984_ Destroyed Imp. Treads. 00985_ Assault Rifle destroyed. 00987_ The unstable cave ceiling collapses. 00987_ Lgt. Ion Engine destroyed. 00987_ Destroyed Lgt. Ion Engine. 00987_ Rocket Launcher destroyed. 00989_ The unstable cave ceiling collapses. 00989_ K-01 Serf collects debris. 00990_ K-01 Serf destroyed. 00991_ Grenade Launcher destroyed. 00992_ The unstable cave ceiling collapses. Map ----- +----------------------------------------------------+ | ????????????????????????????????? | | ????????????????????????????????? | | ????????????????????????????????? | | ????????????????????????????????? | | ????????????????????????????????? | | ????????????????????????????????? | | ????????????????????????????????? | | ????????????????????????????????? | | ????????????????????????????????? | | ????????????????????????????????? | | ????????????????????????????????? | | ????????????????????????????????? | | ????????????????????????????????? | | ????????????????????????????????? | | ????????????????????????????????? | | ????????????????????????????????? | | ????????????????????????????????? | | ????????????????????????????????? | | ????????????????????????????????? | | ????#?????????????????###???????? | | ??? #????????#????#??## ####???? | | #?? ???????? ????# ## ##??? | | ## #???????? ###### ##?? | | # #???????# # #?? | | ##??????# =%d%d #?? | | #???????# ## @ #?? | | #???????# ## #?? | | #????????# ###### # #?? | | #?????##### ###### #?? | | ! #??????# = ###?? | | = ##?????# ############ #####???? | | ##????# #??????????##????????? | | ##???# ####?????????????????? | | ##### #?????????????????? | | # ## #?????????????????? | | ## ##### #??#?????????????????? | | #??? #????????????????????? | | # ###??? ????????????????????? | | # #???? ???????????????????? | | # #????# ??????????????????? | | # #????# ??????????????????? | | # #???? ?????????????????? | | #???? ## ????????????????? | | # #????? ??? ???????????????? | | # ?????? #??? ???????????????? | | # ????? #????? ##??????????????? | | ##?????##??????##???????????????? | | ????????????????????????????????? | | ????????????????????????????????? | | ????????????????????????????????? | +----------------------------------------------------+ Best States ------------- Heat Dissipation 35 Energy Generation 10 Energy Capacity 125 Matter Stores 300 Matter Capacity 300 Sight Range 16 Terrain Scan Density 10 Armor Coverage 150 Evasion (%) 50 Recoil Reduction 2 Item Schematics ----------------- None Robot Schematics ------------------ None Fabricated ------------ Nothing Alien Tech Used ----------------- None Achievements -------------- None Challenges ------------ None Game ------ Seed SmallBattleCloak Manual? 0 Play Time 00:20:25 Cumulative 3.4 hours Start 2025.01.02 @ 13:50:00 End 2025.01.02 @ 14:10:12 Sessions 1 Manual Loads 0 Difficulty Rogue Special Mode None Game No. 5 Rogue 5 Adventurer 0 Explorer 0 Win Type - Total 0 Types 0/0/0/0/0/0/0/0/0 Lore% 7 Gallery% 6 Achievement% 8 Wizard Run 0 Options --------- Layout 1 ASCII 0 Keyboard 1 Movement Numpad Keybinds 0 Fullscreen 2 Font 24/Smallcaps Map View 50x40 Zoom Use 0% Tactical HUD 1 Map Filters NONE Filters NONE Steam 1 RUN: 87a22079-2702-4691-8e3e-0abef732f0f6